fUST/lending_fUST_20250203
["ID","MTS","AMOUNT","RATE_DAILY","PERIOD"]
[351366539,1738543842810,-563.02,0.00016986,2]
[351366541,1738543842820,-1578.66,0.00016986,2]
[351366543,1738543842831,-572.54,0.00016986,2]
[351366544,1738543842841,-1633.31,0.00016986,2]
[351366545,1738543842851,-1142.93,0.00016986,2]
[351366546,1738543842861,-3786.35,0.00016986,2]
[351366547,1738543842871,-5699.73,0.00016986,2]
[351366548,1738543842881,-541.71,0.00016986,2]
[351366549,1738543842891,-403.33663693,0.00016986,2]
[351366550,1738543842901,-925.54,0.00016986,2]
[351366551,1738543842911,-158.11,0.00016992,2]
[351366552,1738543842920,-161.96169493,0.00016999,2]
[351366553,1738543842931,-205.25752328,0.00017,2]
[351366554,1738543842948,-153111.483782,0.00017,7]
[351366555,1738543842959,-151.0,0.00017,2]
[351366556,1738543842969,-302.678033,0.00017,2]
[351366557,1738543842979,-151.0,0.00017,2]
[351366558,1738543842989,-151.0,0.00017,2]
[351366559,1738543843000,-151.0,0.00017,2]
[351366560,1738543843011,-151.0,0.00017,2]
[351366561,1738543843020,-151.0,0.00017,2]
[351366562,1738543843030,-151.0,0.00017,2]
[351366563,1738543843040,-151.0,0.00017,2]
[351366564,1738543843050,-151.0,0.00017,2]
[351366565,1738543843059,-419.303355,0.00017,2]
[351366566,1738543843069,-419.303355,0.00017,2]
[351366567,1738543843079,-151.0,0.00017,2]
[351366568,1738543843091,-151.0,0.00017,2]
[351366569,1738543843101,-151.0,0.00017,2]
[351366570,1738543843112,-151.0,0.00017,2]
[351366571,1738543843122,-188.804898,0.00017,2]
[351366572,1738543843134,-151.0,0.00017,2]
[351366573,1738543843144,-188.804898,0.00017,2]
[351366574,1738543843153,-151.0,0.00017,2]
[351366575,1738543843163,-151.0,0.00017,2]
[351366576,1738543843172,-151.0,0.00017,2]
[351366577,1738543843182,-10000.0,0.00017,2]
[351366578,1738543843196,-10000.0,0.00017,2]
[351366579,1738543843206,-151.0,0.00017,2]
[351366580,1738543843216,-151.0,0.00017,2]
[351366581,1738543843226,-279.207518,0.00017,2]
[351366582,1738543843235,-279.207518,0.00017,2]
[351366583,1738543843245,-7395.2415014,0.00017,2]
[351366584,1738543843255,-151.0,0.00017,2]
[351366585,1738543843265,-151.0,0.00017,2]
[351366586,1738543843274,-151.0,0.00017,2]
[351366587,1738543843284,-151.0,0.00017,2]
[351366588,1738543843294,-151.0,0.00017,2]
[351366589,1738543843304,-151.0,0.00017,2]
[351366590,1738543843314,-151.0,0.00017,2]
[351366591,1738543843323,-977.690664,0.00017,2]
[351366592,1738543843333,-977.690664,0.00017,2]
[351366593,1738543843343,-151.0,0.00017,2]
[351366594,1738543843353,-201.827274,0.00017,2]
[351366595,1738543843363,-201.827274,0.00017,2]
[351366596,1738543843373,-311.95335133,0.00017003,2]
[351366597,1738543843383,-1001.04718644,0.00017021,2]
[351366598,1738543843392,-1000.0,0.00017021,2]
[351366599,1738543843402,-311.95335133,0.00017038,2]
[351366600,1738543843412,-311.95335133,0.00017072,2]
[351366601,1738543843422,-290.9500322,0.00017087,2]
[351366602,1738543843431,-311.95335133,0.00017107,2]
[351366603,1738543843446,-500.0,0.00017123,2]
[351366604,1738543843456,-608.66835921,0.00017123,2]
[351366605,1738543843466,-523.63,0.00017123,2]
[351366606,1738543843475,-500.0,0.00017123,2]
[351366607,1738543843486,-500.0,0.00017123,2]
[351366608,1738543843496,-1474.31,0.00017123,2]
[351366609,1738543843507,-564.59,0.00017123,2]
[351366610,1738543843518,-500.0,0.00017123,2]
[351366611,1738543843528,-1353.13,0.00017123,2]
[351366612,1738543843538,-2330.95,0.00017123,2]
[351366613,1738543843551,-500.0,0.00017123,2]
[351366626,1738543843656,-504.28,0.00017123,2]
[351366629,1738543843666,-500.0,0.00017123,2]
[351366634,1738543843677,-1279.68,0.00017123,2]
[351366636,1738543843686,-671.7,0.00017123,2]
[351366640,1738543843700,-5851.35,0.00017123,2]
[351366643,1738543843710,-500.0,0.00017123,2]
[351366647,1738543843720,-500.0,0.00017123,2]
[351366651,1738543843730,-765.64,0.00017123,2]
[351366655,1738543843739,-500.0,0.00017123,2]
[351366657,1738543843750,-4888.88,0.00017123,2]
[351366659,1738543843759,-500.0,0.00017123,2]
[351366660,1738543843770,-646.65,0.00017123,2]
[351366663,1738543843780,-2070.4,0.00017123,2]
[351366665,1738543843790,-808.56,0.00017123,2]
[351366666,1738543843801,-1854.42813433,0.00017123,2]
[351366667,1738543843819,-607.22186567,0.00017123,2]
[351366668,1738543843829,-500.0,0.00017123,2]
[351366670,1738543843839,-483.82262604,0.00017123,2]
[351366671,1738543843851,-79.19737396,0.00017123,2]
[351366673,1738543843862,-1578.66,0.00017123,2]
[351366675,1738543843872,-572.54,0.00017123,2]
[351366676,1738543843883,-1633.31,0.00017123,2]
[351366677,1738543843894,-1142.93,0.00017123,2]
[351366679,1738543843904,-2131.51518257,0.00017123,2]
[351366681,1738543843916,-1654.83481743,0.00017123,2]
[351366683,1738543843926,-4089.24523896,0.00017123,2]
[351366685,1738543843960,-1610.48476104,0.00017123,2]
[351366686,1738543843970,-541.71,0.00017123,2]
[351366688,1738543843980,-925.54,0.00017123,2]
[351366690,1738543843990,-311.95335133,0.00017141,2]
[351366692,1738543844000,-156.0,0.00017152,2]
[351366694,1738543844010,-311.95335133,0.00017176,2]
[351366696,1738543844020,-10000.0,0.000172,2]
[351366697,1738543844029,-151.0,0.000172,2]
[351366699,1738543844039,-151.0,0.000172,2]
[351366700,1738543844049,-151.0,0.000172,2]
[351366702,1738543844059,-151.0,0.000172,2]
[351366704,1738543844069,-977.690664,0.000172,2]
[351366705,1738543844079,-977.690664,0.000172,2]
[351366706,1738543844097,-151.0,0.000172,2]
[351366707,1738543844108,-201.827274,0.000172,2]
[351366708,1738543844118,-201.827274,0.000172,2]
[351366709,1738543844127,-311.95335133,0.0001721,2]
[351366710,1738543844138,-438.698,0.00017231,2]
[351366711,1738543844147,-2098.802,0.0001724,2]
[351366712,1738543844157,-2301.0,0.0001724,2]
[351366713,1738543844168,-151.0,0.0001724,2]
[351366714,1738543844178,-151.0,0.0001724,2]
[351366715,1738543844195,-311.95335133,0.00017245,2]
[351366716,1738543844206,-251.30060433,0.00017247,2]
[351366717,1738543844216,-500.0,0.00017247,2]
[351366718,1738543844225,-501.81691754,0.00017247,2]
[351366719,1738543844235,-260.13243254,0.00017247,2]
[351366720,1738543844244,-185.984394,0.00017248,3]
[351366721,1738543844254,-1280.85595763,0.00017259,2]
[351366722,1738543844263,-151.0,0.0001726,2]
[351366723,1738543844274,-151.0,0.0001726,2]
[351366724,1738543844284,-151.0,0.0001726,2]
[351366725,1738543844294,-151.0,0.0001726,2]
[351366727,1738543844304,-248.887428,0.0001726,2]
[351366729,1738543844314,-151.0,0.0001726,2]
[351366731,1738543844324,-151.0,0.0001726,2]
[351366733,1738543844334,-205.473962,0.0001726,2]
[351366734,1738543844343,-419.303355,0.0001726,2]
[351366735,1738543844353,-419.303355,0.0001726,2]
[351366736,1738543844363,-151.0,0.0001726,2]
[351366737,1738543844372,-151.0,0.0001726,2]
[351366739,1738543844382,-500.0,0.0001726,2]
[351366740,1738543844392,-151.0,0.0001726,2]
[351366741,1738543844401,-151.0,0.0001726,2]
[351366742,1738543844411,-188.804898,0.0001726,2]
[351366743,1738543844420,-151.0,0.0001726,2]
[351366744,1738543844430,-188.804898,0.0001726,2]
[351366745,1738543844444,-151.0,0.0001726,2]
[351366746,1738543844454,-151.0,0.0001726,2]
[351366747,1738543844463,-151.0,0.0001726,2]
[351366748,1738543844473,-523.63,0.0001726,2]
[351366749,1738543844483,-151.0,0.0001726,2]
[351366750,1738543844493,-151.0,0.0001726,2]
[351366751,1738543844503,-279.207518,0.0001726,2]
[351366752,1738543844514,-279.207518,0.0001726,2]
[351366753,1738543844524,-500.0,0.0001726,2]
[351366754,1738543844534,-500.0,0.0001726,2]
[351366755,1738543844544,-1474.31,0.0001726,2]
[351366756,1738543844554,-564.59,0.0001726,2]
[351366757,1738543844565,-500.0,0.0001726,2]
[351366758,1738543844575,-1353.13,0.0001726,2]
[351366759,1738543844584,-2330.95,0.0001726,2]
[351366760,1738543844593,-500.0,0.0001726,2]
[351366761,1738543844604,-504.28,0.0001726,2]
[351366762,1738543844613,-500.0,0.0001726,2]
[351366763,1738543844623,-1279.68,0.0001726,2]
[351366764,1738543844633,-671.7,0.0001726,2]
[351366765,1738543844643,-5851.35,0.0001726,2]
[351366766,1738543844652,-500.0,0.0001726,2]
[351366767,1738543844662,-500.0,0.0001726,2]
[351366768,1738543844671,-765.64,0.0001726,2]
[351366769,1738543844681,-500.0,0.0001726,2]
[351366770,1738543844694,-4888.88,0.0001726,2]
[351366771,1738543844704,-500.0,0.0001726,2]
[351366772,1738543844714,-646.65,0.0001726,2]
[351366773,1738543844724,-2070.4,0.0001726,2]
[351366774,1738543844734,-808.56,0.0001726,2]
[351366775,1738543844744,-2461.65,0.0001726,2]
[351366776,1738543844754,-500.0,0.0001726,2]
[351366777,1738543844764,-563.02,0.0001726,2]
[351366778,1738543844773,-1578.66,0.0001726,2]
[351366779,1738543844783,-572.54,0.0001726,2]
[351366780,1738543844792,-1633.31,0.0001726,2]
[351366781,1738543844802,-1142.93,0.0001726,2]
[351366782,1738543844812,-3786.35,0.0001726,2]
[351366783,1738543844821,-5699.73,0.0001726,2]
[351366784,1738543844831,-541.71,0.0001726,2]
[351366785,1738543844840,-311.95335133,0.00017279,2]
[351366786,1738543844849,-151.0,0.000173,2]
[351366787,1738543844859,-151.0,0.000173,2]
[351366788,1738543844869,-311.95335133,0.00017314,2]
[351366789,1738543844880,-151.0,0.00017335,2]
[351366790,1738543844889,-302.678033,0.00017335,2]
[351366791,1738543844899,-311.95335133,0.00017348,2]
[351366792,1738543844908,-311.95335133,0.00017383,2]
[351366793,1738543844918,-151.0,0.00017397,2]
[351366794,1738543844927,-151.927478,0.00017397,2]
[351366795,1738543844937,-151.0,0.00017397,2]
[351366796,1738543844951,-500.0,0.00017397,2]
[351366797,1738543844961,-523.63,0.00017397,2]
[351366798,1738543844970,-500.0,0.00017397,2]
[351366799,1738543844979,-500.0,0.00017397,2]
[351366800,1738543844988,-151.0,0.00017397,2]
[351366801,1738543844998,-151.0,0.00017397,2]
[351366802,1738543845008,-1474.31,0.00017397,2]
[351366803,1738543845018,-564.59,0.00017397,2]
[351366804,1738543845028,-518.40292099,0.00017397,2]
[351366805,1738543845038,-1353.13,0.00017397,2]
[351366806,1738543845047,-2330.95,0.00017397,2]
[351366807,1738543845057,-500.0,0.00017397,2]
[351366808,1738543845067,-500.0,0.00017397,2]
[351366809,1738543845077,-504.28,0.00017397,2]
[351366810,1738543845088,-1279.68,0.00017397,2]
[351366811,1738543845097,-151.0,0.00017397,2]
[351366812,1738543845108,-151.0,0.00017397,2]
[351366813,1738543845120,-151.0,0.00017397,2]
[351366814,1738543845131,-151.0,0.00017397,2]
[351366815,1738543845142,-671.7,0.00017397,2]
[351366816,1738543845155,-5851.35,0.00017397,2]
[351366817,1738543845166,-500.0,0.00017397,2]
[351366818,1738543845176,-463.17662613,0.00017397,2]
[351366819,1738543845190,-765.64,0.00017397,2]
[351366820,1738543845202,-500.0,0.00017397,2]
[351366821,1738543845212,-4888.88,0.00017397,2]
[351366822,1738543845221,-500.0,0.00017397,2]
[351366823,1738543845231,-646.65,0.00017397,2]
[351366824,1738543845240,-2070.4,0.00017397,2]
[351366825,1738543845249,-808.56,0.00017397,2]
[351366826,1738543845259,-2461.65,0.00017397,2]
[351366827,1738543845268,-500.0,0.00017397,2]
[351366828,1738543845277,-563.02,0.00017397,2]
[351366829,1738543845288,-977.690664,0.00017397,2]
[351366830,1738543845297,-977.690664,0.00017397,2]
[351366831,1738543845307,-1578.66,0.00017397,2]
[351366832,1738543845316,-572.54,0.00017397,2]
[351366833,1738543845327,-1633.31,0.00017397,2]
[351366834,1738543845338,-1142.93,0.00017397,2]
[351366835,1738543845348,-201.827274,0.00017397,2]
[351366836,1738543845357,-3786.35,0.00017397,2]
[351366837,1738543845363,-5699.73,0.00017397,2]
[351366838,1738543845370,-201.827274,0.00017397,2]
[351366839,1738543845377,-541.71,0.00017397,2]
[351366840,1738543845385,-151.0,0.000174,2]
[351366841,1738543845393,-151.0,0.000174,2]
[351366842,1738543845402,-151.0,0.000174,2]
[351366843,1738543845410,-1000.0,0.0001741,2]
[351366844,1738543845419,-173.29454244,0.0001741,2]
[351366845,1738543845428,-311.95335133,0.00017417,2]
[351366846,1738543845443,-401.0,0.0001743,2]
[351366847,1738543845452,-311.95335133,0.00017452,2]
[351366848,1738543845461,-152.01,0.00017466,2]
[351366849,1738543845471,-154.0,0.00017466,2]
[351366850,1738543845480,-154.0,0.00017466,2]
[351366851,1738543845490,-154.0,0.00017466,2]
[351366852,1738543845500,-154.0,0.00017466,2]
[351366853,1738543845509,-154.0,0.00017466,2]
[351366854,1738543845518,-154.0,0.00017466,2]
[351366855,1738543845528,-154.0,0.00017466,2]
[351366856,1738543845537,-154.0,0.00017466,2]
[351366857,1738543845546,-154.0,0.00017466,2]
[351366858,1738543845556,-154.0,0.00017466,2]
[351366859,1738543845566,-154.0,0.00017466,2]
[351366861,1738543845575,-154.0,0.00017466,2]
[351366863,1738543845585,-154.0,0.00017466,2]
[351366864,1738543845595,-162.0,0.00017466,2]
[351366865,1738543845605,-153.43817452,0.00017479,2]
[351366866,1738543845614,-311.95335133,0.00017486,2]
[351366867,1738543845623,-9845.0,0.000175,2]
[351366869,1738543845633,-151.0,0.000175,2]
[351366871,1738543845644,-419.303355,0.000175,2]
[351366873,1738543845654,-419.303355,0.000175,2]
[351366875,1738543845663,-124.94811255,0.000175,2]
[351366879,1738543845858,-26.05188745,0.000175,2]
[351366881,1738543845869,-188.804898,0.000175,2]
[351366883,1738543845879,-151.0,0.000175,2]
[351366886,1738543845889,-188.804898,0.000175,2]
[351366888,1738543845899,-151.0,0.000175,2]
[351366890,1738543845909,-151.0,0.000175,2]
[351366893,1738543845918,-151.0,0.000175,2]
[351366896,1738543845928,-151.0,0.000175,2]
[351366898,1738543845937,-151.0,0.000175,2]
[351366900,1738543845953,-279.207518,0.000175,2]
[351366901,1738543845963,-279.207518,0.000175,2]
[351366905,1738543845973,-311.95335133,0.00017521,2]
[351366908,1738543845982,-151.0,0.00017534,2]
[351366911,1738543845991,-151.0,0.00017534,2]
[351366914,1738543846001,-151.0,0.00017534,2]
[351366916,1738543846011,-151.0,0.00017534,2]
[351366918,1738543846021,-151.0,0.00017534,2]
[351366921,1738543846031,-151.0,0.00017534,2]
[351366923,1738543846041,-329.809689,0.00017534,2]
[351366926,1738543846051,-329.809689,0.00017534,2]
[351366929,1738543846061,-152.5985,0.00017534,2]
[351366932,1738543846070,-155.345295,0.00017534,2]
[351366934,1738543846080,-151.0,0.00017534,2]
[351366937,1738543846095,-151.0,0.00017534,2]
[351366939,1738543846105,-151.0,0.00017534,2]
[351366940,1738543846115,-500.0,0.00017534,2]
[351366941,1738543846127,-151.0,0.00017534,2]
[351366942,1738543846136,-151.0,0.00017534,2]
[351366944,1738543846146,-523.63,0.00017534,2]
[351366945,1738543846156,-500.0,0.00017534,2]
[351366946,1738543846167,-500.0,0.00017534,2]
[351366948,1738543846177,-1474.31,0.00017534,2]
[351366949,1738543846187,-564.59,0.00017534,2]
[351366950,1738543846204,-1353.13,0.00017534,2]
[351366952,1738543846214,-2330.95,0.00017534,2]
[351366954,1738543846223,-500.0,0.00017534,2]
[351366956,1738543846233,-500.0,0.00017534,2]
[351366958,1738543846243,-504.28,0.00017534,2]
[351366959,1738543846253,-1279.68,0.00017534,2]
[351366961,1738543846263,-671.7,0.00017534,2]
[351366963,1738543846273,-500.0,0.00017534,2]
[351366965,1738543846284,-5851.35,0.00017534,2]
[351366967,1738543846295,-765.64,0.00017534,2]
[351366968,1738543846305,-500.0,0.00017534,2]
[351366970,1738543846316,-4888.88,0.00017534,2]
[351366971,1738543846326,-283.26675622,0.00017534,2]
[351366973,1738543846339,-216.73324378,0.00017534,2]
[351366975,1738543846349,-83.26675622,0.00017534,2]
[351366977,1738543846362,-563.38324378,0.00017534,2]
[351366979,1738543846372,-877.36675622,0.00017534,2]
[351366981,1738543846383,-675.30720304,0.00017534,2]
[351366982,1738543846395,-517.72604074,0.00017534,2]
[351366983,1738543846405,-808.56,0.00017534,2]
[351366984,1738543846416,-2461.65,0.00017534,2]
[351366986,1738543846426,-500.0,0.00017534,2]
[351366988,1738543846436,-563.02,0.00017534,2]
[351366989,1738543846453,-1578.66,0.00017534,2]
[351366990,1738543846463,-572.54,0.00017534,2]
[351366991,1738543846472,-465.96474714,0.00017534,2]
[351366992,1738543846484,-1167.34525286,0.00017534,2]
[351366993,1738543846494,-1142.93,0.00017534,2]
[351366994,1738543846504,-1172.23206754,0.00017534,2]
[351366995,1738543846515,-416.17571755,0.00017534,2]
[351367013,1738543846797,-500.0,0.00016438,2]
[351367014,1738543846806,-1.51226184,0.00016575,2]
[351367016,1738543846817,-498.48773816,0.00016575,2]
[351367018,1738543846826,-500.0,0.00016712,2]
[351367020,1738543846836,-684.783212,0.00016849,2]
[351367022,1738543846846,-500.0,0.00016849,2]
[351367024,1738543846855,-500.0,0.00016986,2]
[351367026,1738543846865,-684.783212,0.00017,2]
[351367027,1738543846875,-500.0,0.00017123,2]
[351367028,1738543846884,-684.783212,0.000172,2]
[351367029,1738543846894,-925.54,0.0001726,2]
[351367030,1738543846904,-500.0,0.0001726,2]
[351367031,1738543846913,-925.54,0.00017397,2]
[351367032,1738543846923,-500.0,0.00017397,2]
[351367033,1738543846933,-684.783212,0.00017397,2]
[351367034,1738543846949,-2197.94221491,0.00017534,2]
[351367035,1738543846958,-5699.73,0.00017534,2]
[351367036,1738543846968,-541.71,0.00017534,2]
[351367037,1738543846977,-925.54,0.00017534,2]
[351367038,1738543846987,-500.0,0.00017534,2]
[351367039,1738543846998,-311.95335133,0.00017555,2]
[351367040,1738543847009,-311.95335133,0.0001759,2]
[351367041,1738543847018,-151.0,0.000176,2]
[351367042,1738543847028,-151.0,0.000176,2]
[351367043,1738543847038,-302.678033,0.000176,2]
[351367044,1738543847048,-311.95335133,0.00017624,2]
[351367045,1738543847058,-311.95335133,0.00017659,2]
[351367046,1738543847068,-151.0,0.00017671,2]
[351367047,1738543847081,-151.0,0.00017671,2]
[351367048,1738543847090,-329.809689,0.00017671,2]
[351367049,1738543847100,-329.809689,0.00017671,2]
[351367050,1738543847110,-151.0,0.00017671,2]
[351367051,1738543847127,-419.303355,0.00017671,2]
[351367052,1738543847137,-419.303355,0.00017671,2]
[351367053,1738543847147,-151.0,0.00017671,2]
[351367054,1738543847156,-151.0,0.00017671,2]
[351367055,1738543847166,-500.0,0.00017671,2]
[351367056,1738543847175,-151.0,0.00017671,2]
[351367057,1738543847184,-151.0,0.00017671,2]
[351367058,1738543847201,-188.804898,0.00017671,2]
[351367059,1738543847211,-151.0,0.00017671,2]
[351367060,1738543847222,-188.804898,0.00017671,2]
[351367061,1738543847232,-151.0,0.00017671,2]
[351367062,1738543847241,-151.0,0.00017671,2]
[351367063,1738543847251,-253.342816,0.00017671,2]
[351367064,1738543847260,-523.63,0.00017671,2]
[351367065,1738543847269,-151.0,0.00017671,2]
[351367066,1738543847279,-151.0,0.00017671,2]
[351367067,1738543847290,-279.207518,0.00017671,2]
[351367068,1738543847300,-279.207518,0.00017671,2]
[351367069,1738543847310,-500.0,0.00017671,2]
[351367070,1738543847320,-500.0,0.00017671,2]
[351367071,1738543847329,-151.0,0.00017671,2]
[351367072,1738543847338,-151.0,0.00017671,2]
[351367073,1738543847348,-1474.31,0.00017671,2]
[351367074,1738543847358,-564.59,0.00017671,2]
[351367075,1738543847368,-1353.13,0.00017671,2]
[351367076,1738543847378,-2330.95,0.00017671,2]
[351367077,1738543847388,-500.0,0.00017671,2]
[351367078,1738543847398,-500.0,0.00017671,2]
[351367079,1738543847408,-504.28,0.00017671,2]
[351367080,1738543847418,-151.0,0.00017671,2]
[351367081,1738543847428,-1279.68,0.00017671,2]
[351367082,1738543847444,-151.0,0.00017671,2]
[351367083,1738543847454,-196.044648,0.00017671,2]
[351367084,1738543847465,-151.0,0.00017671,2]
[351367085,1738543847476,-671.7,0.00017671,2]
[351367086,1738543847486,-500.0,0.00017671,2]
[351367087,1738543847496,-5851.35,0.00017671,2]
[351367088,1738543847505,-765.64,0.00017671,2]
[351367089,1738543847602,-500.0,0.00017671,2]
[351367090,1738543847612,-4888.88,0.00017671,2]
[351367091,1738543847623,-500.0,0.00017671,2]
[351367092,1738543847633,-646.65,0.00017671,2]
[351367093,1738543847643,-2070.4,0.00017671,2]
[351367094,1738543847653,-808.56,0.00017671,2]
[351367095,1738543847662,-2461.65,0.00017671,2]
[351367096,1738543847672,-500.0,0.00017671,2]
[351367097,1738543847682,-563.02,0.00017671,2]
[351367098,1738543847697,-977.690664,0.00017671,2]
[351367099,1738543847708,-977.690664,0.00017671,2]
[351367100,1738543847717,-1578.66,0.00017671,2]
[351367101,1738543847727,-572.54,0.00017671,2]
[351367102,1738543847736,-1633.31,0.00017671,2]
[351367103,1738543847746,-1142.93,0.00017671,2]
[351367104,1738543847755,-201.827274,0.00017671,2]
[351367105,1738543847765,-3786.35,0.00017671,2]
[351367106,1738543847775,-5699.73,0.00017671,2]
[351367107,1738543847784,-201.827274,0.00017671,2]
[351367108,1738543847794,-541.71,0.00017671,2]
[351367109,1738543847804,-925.54,0.00017671,2]
[351367110,1738543847814,-500.0,0.00017671,2]
[351367111,1738543847824,-311.95335133,0.00017693,2]
[351367112,1738543847833,-151.053,0.00017695,2]
[351367113,1738543847843,-1200.0,0.00017695,2]
[351367114,1738543847852,-153.43817452,0.00017699,2]
[351367115,1738543847862,-2000.0,0.000177,2]
[351367116,1738543847871,-2000.0,0.000177,2]
[351367117,1738543847881,-1718.19,0.000177,2]
[351367118,1738543847891,-151.0,0.000177,2]
[351367119,1738543847901,-151.0,0.000177,2]
[351367120,1738543847912,-151.0,0.000177,2]
[351367121,1738543847922,-500.2,0.000177,2]
[351367122,1738543847932,-151.0,0.000177,2]
[351367123,1738543847945,-2510.25745509,0.000177,2]
[351367124,1738543847955,-2510.25745503,0.00017722,2]
[351367125,1738543847964,-311.95335133,0.00017728,2]
[351367126,1738543847974,-2510.25745503,0.00017744,2]
[351367127,1738543847983,-311.95335133,0.00017762,2]
[351367128,1738543847993,-2510.25745503,0.00017767,2]
[351367129,1738543848003,-160.0,0.00017774,3]
[351367130,1738543848013,-2510.25745503,0.00017789,2]
[351367131,1738543848023,-514.10189715,0.00017795,2]
[351367132,1738543848033,-311.95335133,0.00017797,2]
[351367133,1738543848042,-11641.80687734,0.000178,15]
[351367134,1738543848055,-92695.0062528,0.000178,15]
[351367135,1738543848066,-70737.101813,0.000178,15]
[351367136,1738543848078,-270750.70567581,0.000178,15]
[351367137,1738543848107,-684.783212,0.00017671,2]
[351367138,1738543848120,-270.216788,0.000178,15]
[351367139,1738543848132,-373.58003138,0.000178,15]
[351367140,1738543848144,-1739.50774784,0.000178,15]
[351367141,1738543848157,-143683.99999999,0.000178,15]
[351367142,1738543848170,-414.0,0.000178,15]
[351367143,1738543848328,-500.0,0.00016438,2]
[351367144,1738543848338,-500.0,0.00016438,2]
[351367145,1738543848348,-502.54612324,0.00016438,2]
[351367146,1738543848357,-684.783212,0.00016849,2]
[351367147,1738543848367,-396.0,0.0001724,2]
[351367148,1738543848377,-124066.67078576,0.000178,15]
[351367149,1738543848389,-9588.8,0.000178,15]
[351367150,1738543848402,-9580.0,0.000178,15]
[351367151,1738543848415,-757.4879977,0.000178,15]
[351367152,1738543848427,-7797.60326059,0.000178,15]
[351367153,1738543848443,-7050.00001,0.000178,15]
[351367154,1738543848455,-960.7,0.000178,15]
[351367155,1738543891855,160.0,0.0001949,120]
[351367157,1738544042702,1626.63026502,0.00015011,2]
[351367188,1738544311861,160.0,0.0001912,120]
[351367193,1738544351779,185.984394,0.0001764,15]
[351367197,1738544371302,160.0,0.00020035,120]
[351367199,1738544406137,186.12,0.00010959,2]
[351367200,1738544413289,159.58041,0.0001764,15]
[351367202,1738544427125,155.1,0.00010959,2]
[351367203,1738544437677,775.54,0.00010959,2]
[351367213,1738544701659,220.815433,0.00013973,2]
[351367219,1738544775826,152.0,0.00014848,5]
[351367337,1738545033521,-500.0,0.0001506,2]
[351367338,1738545033532,-500.0,0.0001506,2]
[351367339,1738545033546,-500.0,0.0001506,2]
[351367341,1738545033558,-330.98716858,0.0001506,2]
[351367342,1738545033569,-500.0,0.00015085,2]
[351367343,1738545033580,-500.0,0.00015085,2]
[351367345,1738545033592,-300.0,0.00015223,2]
[351367347,1738545033604,-24900.0,0.00015224,2]
[351367349,1738545033615,-500.0,0.00015256,2]
[351367350,1738545033629,-729.600485,0.00015331,2]
[351367351,1738545033640,-500.0,0.00015753,2]
[351367352,1738545033652,-500.0,0.00016059,2]
[351367353,1738545033663,-787.08833,0.000163,2]
[351367354,1738545033674,-211.51642075,0.00016338,2]
[351367355,1738545033685,-2000.000001,0.000164,2]
[351367356,1738545033697,-151.0,0.000164,2]
[351367357,1738545033708,-500.0,0.00016437,2]
[351367358,1738545033720,-500.0,0.00016437,2]
[351367359,1738545033732,-460.63885394,0.00016437,2]